[Event "Late-Titled-Tuesday-Blitz-March-05-2024"]
[Site "Chess.com"]
[Date "2024.03.05"]
[Round "2"]
[White "Practical-Play"]
[Black "Miguelito"]
[Result "1/2-1/2"]
[WhiteElo "2568"]
[BlackElo "2798"]
[TimeControl "180+1"]
[EndTime "14:18:17 PST"]
[Termination "Game drawn by repetition"]

1. e4 {[%clk 0:03:00.9]} 1... c5 {[%clk 0:02:55.2]} 2. c3 {[%clk 0:02:59.6]}
2... Nf6 {[%clk 0:02:54.2]} 3. e5 {[%clk 0:02:58.8]} 3... Nd5 {[%clk 0:02:54.6]}
4. d4 {[%clk 0:02:59]} 4... cxd4 {[%clk 0:02:55.1]} 5. Nf3 {[%clk 0:02:59.2]}
5... d6 {[%clk 0:02:54.8]} 6. Bc4 {[%clk 0:02:59]} 6... e6 {[%clk 0:02:52.5]} 7.
Bg5 {[%clk 0:02:55.7]} 7... Qa5 {[%clk 0:02:49.5]} 8. Qxd4 {[%clk 0:02:24.7]}
8... Nc6 {[%clk 0:02:46.5]} 9. Qe4 {[%clk 0:02:24.2]} 9... dxe5 {[%clk 0:02:34]}
10. O-O {[%clk 0:02:04.4]} 10... Nf6 {[%clk 0:02:26.3]} 11. Qe3 {[%clk
0:01:54.6]} 11... Bc5 {[%clk 0:02:21.1]} 12. Qe2 {[%clk 0:01:52.9]} 12... Qc7
{[%clk 0:02:17.3]} 13. Re1 {[%clk 0:01:50.3]} 13... e4 {[%clk 0:02:15.4]} 14.
Nfd2 {[%clk 0:01:47]} 14... Ne5 {[%clk 0:02:12.1]} 15. Bb5+ {[%clk 0:01:44]}
15... Bd7 {[%clk 0:02:03.8]} 16. Bxf6 {[%clk 0:01:42.4]} 16... gxf6 {[%clk
0:01:59.4]} 17. Nxe4 {[%clk 0:01:41.9]} 17... Be7 {[%clk 0:01:57.1]} 18. Nbd2
{[%clk 0:01:17.1]} 18... Bxb5 {[%clk 0:01:51.3]} 19. Qxb5+ {[%clk 0:01:16.6]}
19... Qc6 {[%clk 0:01:50.7]} 20. Qxc6+ {[%clk 0:01:11.7]} 20... Nxc6 {[%clk
0:01:51.6]} 21. Nc4 {[%clk 0:01:11.2]} 21... O-O-O {[%clk 0:01:52]} 22. Rad1
{[%clk 0:01:10.3]} 22... Kc7 {[%clk 0:01:52.3]} 23. f4 {[%clk 0:00:42.3]} 23...
f5 {[%clk 0:01:48.5]} 24. Nf2 {[%clk 0:00:38.4]} 24... h5 {[%clk 0:01:43.8]} 25.
Nd3 {[%clk 0:00:34.6]} 25... Bf6 {[%clk 0:01:32.9]} 26. Nde5 {[%clk 0:00:27.3]}
26... Nxe5 {[%clk 0:01:31.7]} 27. fxe5 {[%clk 0:00:27.2]} 27... Be7 {[%clk
0:01:30.6]} 28. Kf1 {[%clk 0:00:14.4]} 28... h4 {[%clk 0:01:29]} 29. h3 {[%clk
0:00:13.1]} 29... Rxd1 {[%clk 0:01:22]} 30. Rxd1 {[%clk 0:00:12.7]} 30... Rg8
{[%clk 0:01:22.9]} 31. Nd2 {[%clk 0:00:07.6]} 31... Kc6 {[%clk 0:01:16]} 32. Nf3
{[%clk 0:00:07.9]} 32... b5 {[%clk 0:01:12.4]} 33. Nd4+ {[%clk 0:00:06.4]} 33...
Kb6 {[%clk 0:01:12.4]} 34. Nf3 {[%clk 0:00:07.1]} 34... Kc7 {[%clk 0:01:08.9]}
35. c4 {[%clk 0:00:06.2]} 35... b4 {[%clk 0:01:03]} 36. Nd4 {[%clk 0:00:06.3]}
36... a6 {[%clk 0:01:01.2]} 37. Nc2 {[%clk 0:00:06.7]} 37... Bc5 {[%clk
0:00:53.5]} 38. Ne1 {[%clk 0:00:04.5]} 38... a5 {[%clk 0:00:49.1]} 39. Nf3
{[%clk 0:00:04.6]} 39... Be7 {[%clk 0:00:49.6]} 40. Nd4 {[%clk 0:00:04.9]} 40...
Bc5 {[%clk 0:00:37.4]} 41. Nb5+ {[%clk 0:00:04.3]} 41... Kc6 {[%clk 0:00:35.3]}
42. Nd4+ {[%clk 0:00:04.7]} 42... Kb6 {[%clk 0:00:35.1]} 43. Nf3 {[%clk
0:00:05]} 43... Be7 {[%clk 0:00:27.7]} 44. Rd7 {[%clk 0:00:05.6]} 44... Re8
{[%clk 0:00:27.8]} 45. b3 {[%clk 0:00:04.8]} 45... a4 {[%clk 0:00:25]} 46. bxa4
{[%clk 0:00:04.2]} 46... Kc6 {[%clk 0:00:24.4]} 47. Ra7 {[%clk 0:00:03.7]} 47...
Kc5 {[%clk 0:00:21.1]} 48. Rc7+ {[%clk 0:00:03]} 48... Kb6 {[%clk 0:00:21.2]}
49. Rd7 {[%clk 0:00:03.5]} 49... Kc6 {[%clk 0:00:21.5]} 50. Ra7 {[%clk
0:00:03.5]} 50... Kc5 {[%clk 0:00:15.1]} 51. Rc7+ {[%clk 0:00:03.2]} 51... Kb6
{[%clk 0:00:15.7]} 52. Rd7 {[%clk 0:00:03.7]} 1/2-1/2

[Event "Late-Titled-Tuesday-Blitz-March-05-2024"]
[Site "Chess.com"]
[Date "2024.03.05"]
[Round "2"]
[White "kai_nov"]
[Black "2346PL"]
[Result "1-0"]
[WhiteElo "2367"]
[BlackElo "2520"]
[TimeControl "180+1"]
[EndTime "14:18:19 PST"]
[Termination "kai_nov won by resignation"]

1. d4 {[%clk 0:03:00.9]} 1... d6 {[%clk 0:02:59.8]} 2. c4 {[%clk 0:02:56.8]}
2... e5 {[%clk 0:02:59.6]} 3. d5 {[%clk 0:02:54.8]} 3... f5 {[%clk 0:02:59.5]}
4. e4 {[%clk 0:02:53.4]} 4... fxe4 {[%clk 0:02:59]} 5. Nc3 {[%clk 0:02:53.1]}
5... Nf6 {[%clk 0:02:59.4]} 6. Nge2 {[%clk 0:02:52.6]} 6... Bg4 {[%clk
0:02:58.4]} 7. Qc2 {[%clk 0:02:46.7]} 7... Be7 {[%clk 0:02:47.4]} 8. Ng3 {[%clk
0:02:46]} 8... O-O {[%clk 0:02:46.3]} 9. h3 {[%clk 0:02:43.3]} 9... Bd7 {[%clk
0:02:44]} 10. Ncxe4 {[%clk 0:02:35.8]} 10... Nxe4 {[%clk 0:02:43.7]} 11. Nxe4
{[%clk 0:02:32]} 11... Na6 {[%clk 0:02:43.4]} 12. a3 {[%clk 0:02:29.7]} 12...
Nc5 {[%clk 0:02:36.2]} 13. Nxc5 {[%clk 0:02:28.2]} 13... dxc5 {[%clk 0:02:37.1]}
14. Bd3 {[%clk 0:02:28.3]} 14... h6 {[%clk 0:02:33.1]} 15. Be3 {[%clk
0:02:20.8]} 15... b6 {[%clk 0:02:32.1]} 16. O-O {[%clk 0:02:16.6]} 16... Bg5
{[%clk 0:02:32.6]} 17. Rae1 {[%clk 0:01:54.5]} 17... Qf6 {[%clk 0:02:32.3]} 18.
Bxg5 {[%clk 0:01:36.8]} 18... Qxg5 {[%clk 0:02:32.2]} 19. Re3 {[%clk 0:01:36.1]}
19... Rae8 {[%clk 0:02:29.6]} 20. Rfe1 {[%clk 0:01:24.1]} 20... Kh8 {[%clk
0:02:27.6]} 21. Qe2 {[%clk 0:01:19.5]} 21... Qf4 {[%clk 0:02:22.3]} 22. Rf3
{[%clk 0:01:08.9]} 22... Qd4 {[%clk 0:02:19.2]} 23. Qe4 {[%clk 0:00:50.8]} 23...
Qxe4 {[%clk 0:02:17]} 24. Bxe4 {[%clk 0:00:51.7]} 24... Rxf3 {[%clk 0:02:17]}
25. Bxf3 {[%clk 0:00:51.9]} 25... g5 {[%clk 0:02:16.4]} 26. Be4 {[%clk
0:00:47.8]} 26... Kg7 {[%clk 0:02:16.4]} 27. Bd3 {[%clk 0:00:44.6]} 27... a5
{[%clk 0:02:16]} 28. Re3 {[%clk 0:00:39.7]} 28... Kf6 {[%clk 0:02:06.1]} 29.
Rf3+ {[%clk 0:00:33.5]} 29... Ke7 {[%clk 0:02:06.3]} 30. Bg6 {[%clk 0:00:28.3]}
30... Rf8 {[%clk 0:02:06.2]} 31. Rxf8 {[%clk 0:00:23.2]} 31... Kxf8 {[%clk
0:02:07.1]} 32. f3 {[%clk 0:00:21.9]} 32... a4 {[%clk 0:02:02.5]} 33. Kf2 {[%clk
0:00:20.3]} 33... Ke7 {[%clk 0:02:02.2]} 34. Ke3 {[%clk 0:00:20.3]} 34... Kd6
{[%clk 0:02:01.7]} 35. Bd3 {[%clk 0:00:18.5]} 35... c6 {[%clk 0:02:00.2]} 36.
dxc6 {[%clk 0:00:17.9]} 36... Bxc6 {[%clk 0:02:01.1]} 37. Be4 {[%clk 0:00:17.5]}
37... Bd7 {[%clk 0:02:00.4]} 38. Bd3 {[%clk 0:00:17.6]} 38... Be6 {[%clk
0:01:58.7]} 39. Be2 {[%clk 0:00:16.4]} 39... Bf5 {[%clk 0:01:57]} 40. Bd3 {[%clk
0:00:16.3]} 40... Bd7 {[%clk 0:01:57.6]} 41. Be2 {[%clk 0:00:16.3]} 41... Bc6
{[%clk 0:01:54.2]} 42. Bd3 {[%clk 0:00:15.8]} 42... Bb7 {[%clk 0:01:52.9]} 43.
Bc2 {[%clk 0:00:15.6]} 43... Ba8 {[%clk 0:01:50.4]} 44. Bxa4 {[%clk 0:00:15.4]}
44... Bb7 {[%clk 0:01:49.8]} 45. Bc2 {[%clk 0:00:15.6]} 45... Ba6 {[%clk
0:01:44]} 46. Bd3 {[%clk 0:00:15.6]} 46... Bc8 {[%clk 0:01:42.4]} 47. b4 {[%clk
0:00:15]} 47... Bd7 {[%clk 0:01:40.9]} 48. Ke4 {[%clk 0:00:13.4]} 48... Ke6
{[%clk 0:01:36.4]} 49. g3 {[%clk 0:00:12.5]} 49... Bc6+ {[%clk 0:01:35.5]} 50.
Ke3 {[%clk 0:00:12.7]} 50... Kd6 {[%clk 0:01:35.8]} 51. Be4 {[%clk 0:00:12]}
51... Bd7 {[%clk 0:01:35.9]} 52. h4 {[%clk 0:00:11.5]} 52... Ba4 {[%clk
0:01:30.9]} 53. Bd3 {[%clk 0:00:11.1]} 53... Bd7 {[%clk 0:01:28.8]} 54. hxg5
{[%clk 0:00:11.3]} 54... hxg5 {[%clk 0:01:29]} 55. Ke4 {[%clk 0:00:11.7]} 55...
Bc6+ {[%clk 0:01:24.4]} 56. Kf5 {[%clk 0:00:11.5]} 56... Bxf3 {[%clk 0:01:25]}
57. Kxg5 {[%clk 0:00:11.8]} 57... e4 {[%clk 0:01:25.7]} 58. Bf1 {[%clk
0:00:09.7]} 58... Ke5 {[%clk 0:01:26.1]} 59. bxc5 {[%clk 0:00:08.7]} 59... bxc5
{[%clk 0:01:25.9]} 60. a4 {[%clk 0:00:08.8]} 60... e3 {[%clk 0:01:24.5]} 61. a5
{[%clk 0:00:08.9]} 61... e2 {[%clk 0:01:25]} 62. Bxe2 {[%clk 0:00:08.5]} 62...
Bxe2 {[%clk 0:01:25.9]} 63. a6 {[%clk 0:00:08.6]} 63... Bf3 {[%clk 0:01:24.7]}
64. a7 {[%clk 0:00:08.4]} 64... Bc6 {[%clk 0:01:19.4]} 65. g4 {[%clk 0:00:08.1]}
65... Kd4 {[%clk 0:01:18.5]} 66. Kf6 {[%clk 0:00:08.3]} 66... Kxc4 {[%clk
0:01:19.2]} 67. g5 {[%clk 0:00:08.7]} 67... Kd3 {[%clk 0:01:09.1]} 68. g6 {[%clk
0:00:09.3]} 68... c4 {[%clk 0:01:10]} 69. g7 {[%clk 0:00:09.8]} 69... Bd5 {[%clk
0:01:07.4]} 70. a8=Q {[%clk 0:00:09.2]} 70... Bxa8 {[%clk 0:01:07.6]} 71. g8=Q
{[%clk 0:00:09.8]} 71... Be4 {[%clk 0:01:07.1]} 72. Qg3+ {[%clk 0:00:09.9]}
72... Kd4 {[%clk 0:01:07.2]} 73. Qf2+ {[%clk 0:00:10.3]} 73... Kd3 {[%clk
0:01:07.5]} 74. Ke5 {[%clk 0:00:10.2]} 74... Bc6 {[%clk 0:01:07.4]} 75. Qd4+
{[%clk 0:00:10.1]} 1-0

[Event "Late-Titled-Tuesday-Blitz-March-05-2024"]
[Site "Chess.com"]
[Date "2024.03.05"]
[Round "2"]
[White "maximnovik"]
[Black "AlexeiShirov"]
[Result "0-1"]
[WhiteElo "2584"]
[BlackElo "2867"]
[TimeControl "180+1"]
[EndTime "14:18:20 PST"]
[Termination "AlexeiShirov won on time"]

1. e4 {[%clk 0:02:59.6]} 1... e5 {[%clk 0:02:59.8]} 2. Nf3 {[%clk 0:02:59.6]}
2... Nc6 {[%clk 0:02:59.9]} 3. Bb5 {[%clk 0:02:59.8]} 3... a6 {[%clk 0:02:59.3]}
4. Ba4 {[%clk 0:02:59.8]} 4... Nf6 {[%clk 0:02:59.3]} 5. O-O {[%clk 0:03:00]}
5... b5 {[%clk 0:02:59.4]} 6. Bb3 {[%clk 0:03:00]} 6... Bc5 {[%clk 0:03:00.1]}
7. d3 {[%clk 0:03:00]} 7... d6 {[%clk 0:02:57.9]} 8. c3 {[%clk 0:02:59.3]} 8...
h6 {[%clk 0:02:57.1]} 9. Nbd2 {[%clk 0:02:55.3]} 9... O-O {[%clk 0:02:50.8]} 10.
h3 {[%clk 0:02:52.3]} 10... Bb6 {[%clk 0:02:26.5]} 11. Re1 {[%clk 0:02:51.6]}
11... Ne7 {[%clk 0:02:26.5]} 12. Nf1 {[%clk 0:02:51.3]} 12... Ng6 {[%clk
0:02:22.8]} 13. Ng3 {[%clk 0:02:51]} 13... Be6 {[%clk 0:02:13.1]} 14. d4 {[%clk
0:02:47.7]} 14... Re8 {[%clk 0:02:10]} 15. Bc2 {[%clk 0:02:42]} 15... Qc8 {[%clk
0:02:06]} 16. Kh2 {[%clk 0:02:37.2]} 16... c5 {[%clk 0:01:55.5]} 17. d5 {[%clk
0:02:35.5]} 17... Bd7 {[%clk 0:01:54.8]} 18. Be3 {[%clk 0:02:28.3]} 18... Rb8
{[%clk 0:01:54.8]} 19. Qd2 {[%clk 0:02:27.3]} 19... c4 {[%clk 0:01:54.5]} 20.
Bxh6 {[%clk 0:01:49.3]} 20... gxh6 {[%clk 0:01:45.9]} 21. Qxh6 {[%clk
0:01:48.4]} 21... Qd8 {[%clk 0:01:45.5]} 22. Ng5 {[%clk 0:01:27.2]} 22... Qe7
{[%clk 0:01:40.2]} 23. Nf5 {[%clk 0:00:54.2]} 23... Bxf5 {[%clk 0:01:35.8]} 24.
exf5 {[%clk 0:00:53.9]} 24... Qf8 {[%clk 0:01:35]} 25. Nxf7 {[%clk 0:00:30.9]}
25... Qxh6 {[%clk 0:01:34.6]} 26. Nxh6+ {[%clk 0:00:31]} 26... Kg7 {[%clk
0:01:35.2]} 27. fxg6 {[%clk 0:00:27.7]} 27... Kxh6 {[%clk 0:01:35.1]} 28. f3
{[%clk 0:00:26.1]} 28... e4 {[%clk 0:01:21.2]} 29. f4 {[%clk 0:00:20.6]} 29...
Kxg6 {[%clk 0:01:16.6]} 30. g4 {[%clk 0:00:20.6]} 30... Kg7 {[%clk 0:01:15.1]}
31. Kg3 {[%clk 0:00:18.8]} 31... e3 {[%clk 0:01:10.5]} 32. Rad1 {[%clk
0:00:17.4]} 32... Ne4+ {[%clk 0:01:08.9]} 33. Bxe4 {[%clk 0:00:16.8]} 33... Rxe4
{[%clk 0:01:07.6]} 34. Re2 {[%clk 0:00:17.4]} 34... Rf8 {[%clk 0:01:03]} 35. Rf1
{[%clk 0:00:16.1]} 35... b4 {[%clk 0:00:44.9]} 36. h4 {[%clk 0:00:15.9]} 36...
a5 {[%clk 0:00:39.6]} 37. g5 {[%clk 0:00:15.5]} 37... a4 {[%clk 0:00:35.7]} 38.
a3 {[%clk 0:00:15.2]} 38... bxc3 {[%clk 0:00:34.3]} 39. bxc3 {[%clk 0:00:15.4]}
39... Ba5 {[%clk 0:00:33.4]} 40. Rf3 {[%clk 0:00:12.3]} 40... Bxc3 {[%clk
0:00:30.9]} 41. Rexe3 {[%clk 0:00:12.6]} 41... Rxe3 {[%clk 0:00:27.3]} 42. Rxe3
{[%clk 0:00:12.9]} 42... Bb2 {[%clk 0:00:26.6]} 43. f5 {[%clk 0:00:12.8]} 43...
Rxf5 {[%clk 0:00:26]} 44. Kg4 {[%clk 0:00:12.9]} 44... Re5 {[%clk 0:00:26]} 45.
Rf3 {[%clk 0:00:12.5]} 45... c3 {[%clk 0:00:26.2]} 46. Rf2 {[%clk 0:00:12]}
46... Rxd5 {[%clk 0:00:26.3]} 47. h5 {[%clk 0:00:12.1]} 47... Rd4+ {[%clk
0:00:26.7]} 48. Kf5 {[%clk 0:00:12.4]} 48... Rd5+ {[%clk 0:00:27.3]} 49. Kg4
{[%clk 0:00:12.6]} 49... Rd2 {[%clk 0:00:27.3]} 50. h6+ {[%clk 0:00:11.5]} 50...
Kg8 {[%clk 0:00:27.5]} 51. Rf6 {[%clk 0:00:09.7]} 51... c2 {[%clk 0:00:27.4]}
52. g6 {[%clk 0:00:10.2]} 52... Bxf6 {[%clk 0:00:25.9]} 0-1

[Event "Late-Titled-Tuesday-Blitz-March-05-2024"]
[Site "Chess.com"]
[Date "2024.03.05"]
[Round "2"]
[White "Beca95"]
[Black "BabageldiAnnaberdiyev"]
[Result "1-0"]
[WhiteElo "2981"]
[BlackElo "2628"]
[TimeControl "180+1"]
[EndTime "14:18:22 PST"]
[Termination "Beca95 won by resignation"]

1. e4 {[%clk 0:02:59.5]} 1... e6 {[%clk 0:03:00.7]} 2. d3 {[%clk 0:02:58.8]}
2... d5 {[%clk 0:03:01.3]} 3. Nd2 {[%clk 0:02:59.3]} 3... Nf6 {[%clk 0:03:01.6]}
4. e5 {[%clk 0:02:59.1]} 4... Nfd7 {[%clk 0:02:59.6]} 5. f4 {[%clk 0:02:59.5]}
5... c5 {[%clk 0:02:58.7]} 6. Ndf3 {[%clk 0:02:59.4]} 6... Nc6 {[%clk
0:02:58.8]} 7. g3 {[%clk 0:02:59.6]} 7... Be7 {[%clk 0:02:54]} 8. Bg2 {[%clk
0:02:59.2]} 8... b5 {[%clk 0:02:52.1]} 9. Nh3 {[%clk 0:02:59.1]} 9... h6 {[%clk
0:02:49.9]} 10. O-O {[%clk 0:02:57]} 10... Qb6 {[%clk 0:02:50.2]} 11. c3 {[%clk
0:02:55.8]} 11... a5 {[%clk 0:02:49.5]} 12. Be3 {[%clk 0:02:55.4]} 12... Bb7
{[%clk 0:02:41.2]} 13. d4 {[%clk 0:02:55.1]} 13... c4 {[%clk 0:02:41.1]} 14. f5
{[%clk 0:02:55.1]} 14... O-O-O {[%clk 0:02:35.4]} 15. Nf4 {[%clk 0:02:53.9]}
15... Nf8 {[%clk 0:02:34.4]} 16. fxe6 {[%clk 0:02:46.2]} 16... fxe6 {[%clk
0:02:25]} 17. Bh3 {[%clk 0:02:46.1]} 17... Kb8 {[%clk 0:02:25.2]} 18. Qc2 {[%clk
0:02:42.2]} 18... g5 {[%clk 0:02:24.7]} 19. Ng6 {[%clk 0:02:38.8]} 19... Rg8
{[%clk 0:02:16.4]} 20. Nxf8 {[%clk 0:02:37.2]} 20... Rgxf8 {[%clk 0:02:16.5]}
21. Bg4 {[%clk 0:02:33.6]} 21... Bc8 {[%clk 0:02:09.5]} 22. Rf2 {[%clk 0:02:30]}
22... b4 {[%clk 0:02:08.3]} 23. Qg6 {[%clk 0:02:27.1]} 23... Rh8 {[%clk
0:02:00.9]} 24. Re1 {[%clk 0:01:42.2]} 24... a4 {[%clk 0:01:59.1]} 25. a3 {[%clk
0:01:36.5]} 25... bxc3 {[%clk 0:01:50.9]} 26. bxc3 {[%clk 0:01:36.3]} 26... Na5
{[%clk 0:01:51.5]} 27. Qf7 {[%clk 0:01:13.5]} 27... Rde8 {[%clk 0:01:37.2]} 28.
Bh5 {[%clk 0:01:08.7]} 28... Nb3 {[%clk 0:01:15.6]} 29. Bc1 {[%clk 0:00:59.7]}
29... Qa5 {[%clk 0:01:07.4]} 30. Bb2 {[%clk 0:00:59.4]} 30... Qa7 {[%clk
0:01:01.8]} 31. Kg2 {[%clk 0:00:56.1]} 31... Ref8 {[%clk 0:01:01.3]} 32. Qg6
{[%clk 0:00:55.7]} 32... Bd7 {[%clk 0:00:55.2]} 33. Qc2 {[%clk 0:00:50.7]} 33...
Qb6 {[%clk 0:00:55]} 34. Ref1 {[%clk 0:00:50.5]} 34... Kc7 {[%clk 0:00:50.3]}
35. h3 {[%clk 0:00:48.6]} 35... Be8 {[%clk 0:00:42.9]} 36. Bxe8 {[%clk
0:00:47.8]} 36... Rxe8 {[%clk 0:00:43.8]} 37. Nh2 {[%clk 0:00:48.2]} 37... Ref8
{[%clk 0:00:43.7]} 38. Ng4 {[%clk 0:00:48.2]} 38... Rxf2+ {[%clk 0:00:43.1]} 39.
Rxf2 {[%clk 0:00:48.5]} 39... h5 {[%clk 0:00:39.4]} 40. Ne3 {[%clk 0:00:44.6]}
40... Rf8 {[%clk 0:00:30.8]} 41. Rxf8 {[%clk 0:00:42.8]} 41... Bxf8 {[%clk
0:00:31.7]} 42. Qh7+ {[%clk 0:00:42.7]} 42... Kd8 {[%clk 0:00:32.2]} 43. Qg8
{[%clk 0:00:41.7]} 43... Ke8 {[%clk 0:00:31.5]} 44. Qg6+ {[%clk 0:00:39.4]}
44... Kd8 {[%clk 0:00:30.5]} 45. Qf6+ {[%clk 0:00:34.4]} 45... Be7 {[%clk
0:00:27.5]} 46. Nxd5 {[%clk 0:00:34.8]} 46... Bxf6 {[%clk 0:00:20]} 47. Nxb6
{[%clk 0:00:34.4]} 47... Be7 {[%clk 0:00:19.3]} 48. Nxc4 {[%clk 0:00:33.6]}
48... Kd7 {[%clk 0:00:18.1]} 49. Kf3 {[%clk 0:00:32.6]} 49... Kc6 {[%clk
0:00:18.8]} 50. Ke4 {[%clk 0:00:32.7]} 50... Kb5 {[%clk 0:00:16.7]} 51. Kd3
{[%clk 0:00:32.6]} 51... Kc6 {[%clk 0:00:14.1]} 52. g4 {[%clk 0:00:32.2]} 52...
hxg4 {[%clk 0:00:13.9]} 53. hxg4 {[%clk 0:00:33.1]} 53... Bd8 {[%clk 0:00:13.7]}
54. Nd2 {[%clk 0:00:32.9]} 54... Ba5 {[%clk 0:00:14.2]} 55. Nxb3 {[%clk
0:00:32.7]} 55... axb3 {[%clk 0:00:15.1]} 56. c4 {[%clk 0:00:32]} 56... Kb6
{[%clk 0:00:15.2]} 57. d5 {[%clk 0:00:31.5]} 1-0

[Event "Late-Titled-Tuesday-Blitz-March-05-2024"]
[Site "Chess.com"]
[Date "2024.03.05"]
[Round "2"]
[White "GlavkonVVS"]
[Black "DeTimmerman"]
[Result "1/2-1/2"]
[WhiteElo "2548"]
[BlackElo "2749"]
[TimeControl "180+1"]
[EndTime "14:18:24 PST"]
[Termination "Game drawn by repetition"]

1. c4 {[%clk 0:03:00.9]} 1... Nf6 {[%clk 0:02:59.5]} 2. Nc3 {[%clk 0:03:00.8]}
2... e6 {[%clk 0:02:58.4]} 3. g3 {[%clk 0:03:01.3]} 3... d5 {[%clk 0:02:58.5]}
4. Bg2 {[%clk 0:03:01.8]} 4... Be7 {[%clk 0:02:58.4]} 5. Nf3 {[%clk 0:03:01.5]}
5... O-O {[%clk 0:02:59.1]} 6. O-O {[%clk 0:03:01.7]} 6... b6 {[%clk 0:02:52.6]}
7. cxd5 {[%clk 0:02:58.1]} 7... Nxd5 {[%clk 0:02:53.5]} 8. d4 {[%clk 0:02:56.9]}
8... Bb7 {[%clk 0:02:53.5]} 9. Re1 {[%clk 0:02:45.6]} 9... Nd7 {[%clk
0:02:52.4]} 10. e4 {[%clk 0:02:45]} 10... Nxc3 {[%clk 0:02:53.2]} 11. bxc3
{[%clk 0:02:44.9]} 11... c5 {[%clk 0:02:54.1]} 12. d5 {[%clk 0:02:40.2]} 12...
exd5 {[%clk 0:02:53.9]} 13. exd5 {[%clk 0:02:40.4]} 13... Bd6 {[%clk 0:02:54.5]}
14. c4 {[%clk 0:02:37.6]} 14... Qf6 {[%clk 0:02:40.6]} 15. Bg5 {[%clk
0:02:21.4]} 15... Qg6 {[%clk 0:02:40.5]} 16. Qa4 {[%clk 0:02:08.7]} 16... Nf6
{[%clk 0:02:33.7]} 17. Bxf6 {[%clk 0:01:30]} 17... Qxf6 {[%clk 0:02:32.9]} 18.
Qd7 {[%clk 0:01:29.7]} 18... Ba6 {[%clk 0:02:31.8]} 19. Rac1 {[%clk 0:01:27.6]}
19... Rfd8 {[%clk 0:02:30.9]} 20. Qa4 {[%clk 0:01:27]} 20... Bb7 {[%clk
0:02:30.5]} 21. Nd2 {[%clk 0:01:26]} 21... Bf8 {[%clk 0:02:15.1]} 22. Ne4 {[%clk
0:01:25.3]} 22... Qg6 {[%clk 0:02:15]} 23. f4 {[%clk 0:01:20.4]} 23... h6 {[%clk
0:02:12.7]} 24. Re2 {[%clk 0:01:13.3]} 24... Bc8 {[%clk 0:02:04.6]} 25. Nf2
{[%clk 0:01:04]} 25... Bd7 {[%clk 0:02:03.3]} 26. Qa6 {[%clk 0:00:59.6]} 26...
b5 {[%clk 0:01:29.2]} 27. cxb5 {[%clk 0:00:52.9]} 27... Qxa6 {[%clk 0:01:29.1]}
28. bxa6 {[%clk 0:00:52.6]} 28... Bb5 {[%clk 0:01:30]} 29. Rd2 {[%clk
0:00:44.6]} 29... Bxa6 {[%clk 0:01:30.5]} 30. Ne4 {[%clk 0:00:44.2]} 30... Rac8
{[%clk 0:01:30.8]} 31. Bh3 {[%clk 0:00:36.2]} 31... Rc7 {[%clk 0:01:00.7]} 32.
d6 {[%clk 0:00:35.7]} 32... Rc6 {[%clk 0:01:01.3]} 33. Rxc5 {[%clk 0:00:30.8]}
33... Bb7 {[%clk 0:00:57.2]} 34. Rxc6 {[%clk 0:00:22.8]} 34... Bxc6 {[%clk
0:00:58.1]} 35. Bg2 {[%clk 0:00:18.8]} 35... f5 {[%clk 0:00:51.2]} 36. Nf6+
{[%clk 0:00:17.9]} 36... gxf6 {[%clk 0:00:51.5]} 37. Bxc6 {[%clk 0:00:18.5]}
37... Bxd6 {[%clk 0:00:52.1]} 38. Kg2 {[%clk 0:00:18.2]} 38... Kf8 {[%clk
0:00:52]} 39. Bf3 {[%clk 0:00:18.2]} 39... Ke7 {[%clk 0:00:47.1]} 40. Rd5 {[%clk
0:00:18.6]} 40... Ke6 {[%clk 0:00:47]} 41. Ra5 {[%clk 0:00:18.8]} 41... Rd7
{[%clk 0:00:41]} 42. Bd5+ {[%clk 0:00:18.4]} 42... Ke7 {[%clk 0:00:41]} 43. Bb3
{[%clk 0:00:19]} 43... Kf8 {[%clk 0:00:34.4]} 44. Rxf5 {[%clk 0:00:18.9]} 44...
Be7 {[%clk 0:00:32.8]} 45. Rd5 {[%clk 0:00:18.4]} 45... Rxd5 {[%clk 0:00:32.8]}
46. Bxd5 {[%clk 0:00:18.6]} 46... a5 {[%clk 0:00:33.4]} 47. Kf3 {[%clk
0:00:18.9]} 47... a4 {[%clk 0:00:31.9]} 48. Ke4 {[%clk 0:00:19.2]} 48... a3
{[%clk 0:00:32.2]} 49. Kf5 {[%clk 0:00:19.7]} 49... Kg7 {[%clk 0:00:32.7]} 50.
g4 {[%clk 0:00:18.9]} 50... Bf8 {[%clk 0:00:33]} 51. h4 {[%clk 0:00:19.1]} 51...
Be7 {[%clk 0:00:33.2]} 52. Bb3 {[%clk 0:00:19.4]} 52... Bf8 {[%clk 0:00:33.5]}
53. Ke6 {[%clk 0:00:19.8]} 53... Bb4 {[%clk 0:00:33.8]} 54. Kf5 {[%clk
0:00:19.3]} 54... Bd6 {[%clk 0:00:33.5]} 55. g5 {[%clk 0:00:19.3]} 55... fxg5
{[%clk 0:00:32.8]} 56. fxg5 {[%clk 0:00:19.9]} 56... hxg5 {[%clk 0:00:33.1]} 57.
hxg5 {[%clk 0:00:20.4]} 57... Bb4 {[%clk 0:00:33]} 58. g6 {[%clk 0:00:21]} 58...
Bf8 {[%clk 0:00:33.7]} 59. Bf7 {[%clk 0:00:21.4]} 59... Bb4 {[%clk 0:00:34.6]}
60. Ke6 {[%clk 0:00:22]} 60... Bf8 {[%clk 0:00:34.8]} 61. Kd7 {[%clk 0:00:22.9]}
61... Bb4 {[%clk 0:00:35.2]} 62. Kc6 {[%clk 0:00:23.8]} 62... Bf8 {[%clk
0:00:35.7]} 63. Kb5 {[%clk 0:00:24.7]} 63... Be7 {[%clk 0:00:36.3]} 64. Kc4
{[%clk 0:00:25.6]} 64... Bf8 {[%clk 0:00:36.9]} 65. Kb3 {[%clk 0:00:26.3]} 65...
Be7 {[%clk 0:00:37.6]} 66. Kc4 {[%clk 0:00:27.2]} 66... Bf8 {[%clk 0:00:37.7]}
67. Kb3 {[%clk 0:00:28.1]} 67... Be7 {[%clk 0:00:38.3]} 68. Kc4 {[%clk 0:00:29]}
1/2-1/2